bitfinex/quotes_ETHUSD_20230102
["timestamp","ask_amount","ask_price","bid_price","bid_amount"]
[1672622806805,6.80052357,1196.5,1196.4,5.95195322]
[1672622807122,6.80052357,1196.5,1196.4,6.01795322]
[1672622808020,6.80052357,1196.5,1196.4,14.37635322]
[1672622808230,6.80052357,1196.5,1196.4,18.52437854]
[1672622808689,6.80052357,1196.5,1196.4,10.16597854]
[1672622811082,6.80052357,1196.5,1196.4,12.26597854]
[1672622812283,6.80052357,1196.5,1196.4,12.26316411]
[1672622812429,6.80052357,1196.5,1196.4,20.62156411]
[1672622813520,6.80052357,1196.5,1196.4,28.97996411]
[1672622813696,6.80052357,1196.5,1196.4,12.26316411]
[1672622814152,6.80052357,1196.5,1196.4,20.62156411]
[1672622818164,6.80052357,1196.5,1196.4,22.72056411]
[1672622818373,6.80052357,1196.5,1196.4,14.36216411]
[1672622818533,6.80052357,1196.5,1196.4,22.72056411]
[1672622820340,6.80052357,1196.5,1196.4,14.36216411]
[1672622822363,6.80052357,1196.5,1196.4,7.71413879]
[1672622822583,6.80052357,1196.5,1196.4,5.61413879]
[1672622827269,6.80052357,1196.5,1196.4,5.60862879]
[1672622828581,6.80052357,1196.5,1196.4,11.44463297]
[1672622828807,6.80052357,1196.5,1196.4,7.91362879]
[1672622829023,6.80052357,1196.5,1196.4,20.42203667]
[1672622830468,6.80052357,1196.5,1196.4,28.78043667]
[1672622831303,6.80052357,1196.5,1196.4,41.72729781]
[1672622831532,6.80052357,1196.5,1196.4,33.36889781]
[1672622832918,6.80052357,1196.5,1196.4,29.22003667]
[1672622833126,6.80052357,1196.5,1196.4,20.86163667]
[1672622833315,6.80052357,1196.5,1196.4,12.06363667]
[1672622833557,6.80052357,1196.5,1196.4,11.84863667]
[1672622834400,6.80052357,1196.5,1196.4,9.75863667]
[1672622834837,6.80052357,1196.5,1196.4,18.11703667]
[1672622836309,6.80052357,1196.5,1196.4,9.75863667]
[1672622836522,6.80052357,1196.5,1196.4,18.11703667]
[1672622836753,6.80052357,1196.5,1196.4,9.75863667]
[1672622837641,6.80052357,1196.5,1196.4,18.11703667]
[1672622838831,1.80052357,1196.5,1196.4,18.11703667]
[1672622839004,1.73652357,1196.5,1196.4,18.11703667]
[1672622839719,6.73652357,1196.5,1196.4,18.11703667]
[1672622839935,6.80052357,1196.5,1196.4,18.11703667]
[1672622840665,6.80052357,1196.5,1196.4,9.75863667]
[1672622842148,7.31494864,1196.5,1196.4,9.75863667]
[1672622843665,7.31494864,1196.5,1196.4,35.27343667]
[1672622843881,7.31494864,1196.5,1196.4,37.37943667]
[1672622844411,0.15724485,1196.7,1196.6,12.54353201]
[1672622844579,4.83096396,1196.7,1196.6,44.51578774]
[1672622844789,0.066,1196.8,1196.6,44.76817156]
[1672622845153,7.7823,1197.0,1196.8,2.5]
[1672622845452,7.7823,1197.0,1196.9,2.1]
[1672622845453,0.004,1197.0,1196.9,2.1]
[1672622845672,0.6896,1197.1,1196.9,5.35238382]
[1672622845673,0.6276,1197.1,1196.9,5.35238382]
[1672622845885,0.6276,1197.1,1196.9,3.31838382]
[1672622846033,3.1276,1197.1,1196.9,3.25238382]
[1672622846242,5.0,1197.0,1196.9,3.25238382]
[1672622846514,5.004,1197.0,1196.9,1.08338382]
[1672622846680,5.004,1197.0,1196.9,46.04060114]
[1672622846876,5.004,1197.0,1196.9,50.39925178]
[1672622847086,5.004,1197.0,1196.9,50.82218803]
[1672622847407,5.004,1197.0,1196.9,56.94984883]
[1672622847942,4.64166161,1197.0,1196.9,56.94984883]
[1672622848153,4.63766161,1197.0,1196.9,56.94984883]
[1672622848765,4.63766161,1197.0,1196.9,57.833905]
[1672622849029,0.066,1197.1,1196.9,57.833905]
[1672622849242,8.5154703,1197.3,1197.0,42.21649114]
[1672622849450,0.7371703,1197.3,1197.2,2.106]
[1672622849627,0.7331703,1197.3,1197.2,2.106]
[1672622849835,0.7331703,1197.3,1197.2,2.35838382]
[1672622851096,0.7331703,1197.3,1197.2,0.25238382]
[1672622857120,0.7331703,1197.3,1197.2,0.66361897]
[1672622857289,0.7331703,1197.3,1197.2,0.25238382]
[1672622861221,0.7331703,1197.3,1197.2,1.50184588]
[1672622861431,0.7331703,1197.3,1197.2,1.79016841]
[1672622861651,0.7331703,1197.3,1197.2,10.14298841]
[1672622861963,0.7331703,1197.3,1197.2,4.85616841]
[1672622862114,0.7331703,1197.3,1197.2,7.29016841]
[1672622862327,0.7331703,1197.3,1197.2,7.35616841]
[1672622863427,0.7331703,1197.3,1197.2,15.70898841]
[1672622864445,0.7331703,1197.3,1197.2,7.35616841]
[1672622866122,0.7331703,1197.3,1197.2,15.70898841]
[1672622866778,0.7331703,1197.3,1197.2,16.13640865]
[1672622867586,0.7331703,1197.3,1197.2,7.78358865]
[1672622871686,0.7331703,1197.3,1197.2,7.77967214]
[1672622871954,0.7331703,1197.3,1197.2,16.13249214]
[1672622873686,0.7331703,1197.3,1197.2,24.48531214]
[1672622874535,0.7331703,1197.3,1197.2,16.13249214]
[1672622880630,0.7331703,1197.3,1197.2,24.48531214]
[1672622881372,0.7331703,1197.3,1197.2,16.13249214]
[1672622881986,0.7331703,1197.3,1197.2,24.48531214]
[1672622882249,0.7331703,1197.3,1197.2,16.13249214]
[1672622883776,0.7331703,1197.3,1197.2,7.77967214]
[1672622884568,0.7331703,1197.3,1197.2,9.88567214]
[1672622886194,0.7331703,1197.3,1197.2,18.23849214]
[1672622886633,0.7331703,1197.3,1197.2,9.88567214]
[1672622887244,0.7331703,1197.3,1197.2,31.18535328]
[1672622888306,0.7331703,1197.3,1197.2,41.63917328]
[1672622888526,0.7331703,1197.3,1197.2,54.87813434]
[1672622890149,0.7331703,1197.3,1197.2,51.06786752]
[1672622891155,0.7331703,1197.3,1197.2,54.87813434]
[1672622891760,0.7331703,1197.3,1197.2,51.06786752]
[1672622891971,0.7331703,1197.3,1197.2,51.95192369]
[1672622892166,0.7331703,1197.3,1197.2,51.94804267]
[1672622892802,0.7331703,1197.3,1197.2,55.75830949]
[1672622893826,0.066,1197.5,1197.4,8.798]
[1672622894040,7.5218,1197.8,1197.4,3.35911703]
[1672622894289,7.5258,1197.8,1197.5,3.0]
[1672622894496,8.1531,1197.8,1197.4,4.26911703]
[1672622894690,8.1531,1197.8,1197.4,4.20311703]
[1672622894691,9.71105246,1197.8,1197.4,4.20311703]
[1672622896053,14.86698368,1197.8,1197.4,3.0]
[1672622896665,2.5,1197.7,1197.4,3.0]
[1672622897100,0.63077688,1197.6,1197.3,0.7991703]
[1672622897343,0.63077688,1197.6,1197.3,0.7331703]
[1672622897567,2.5,1197.5,1197.3,0.7331703]
[1672622898720,2.5,1197.5,1197.3,3.7331703]
[1672622898944,10.59227688,1197.6,1197.3,3.7331703]
[1672622899083,12.63707175,1197.6,1197.3,3.7331703]
[1672622902240,12.6337323,1197.6,1197.3,3.7331703]
[1672622902450,12.6337323,1197.6,1197.3,6.2331703]
[1672622902679,12.6337323,1197.6,1197.3,6.2991703]
[1672622907446,10.52693743,1197.6,1197.3,6.2991703]
[1672622909434,5.0,1197.4,1197.3,6.2991703]
[1672622909641,5.004,1197.4,1197.3,3.7991703]
[1672622909848,5.004,1197.4,1197.3,3.7331703]
[1672622912164,0.004,1197.4,1197.3,3.7331703]
[1672622912385,15.67949177,1197.6,1197.3,7.68028798]
[1672622912693,15.67949177,1197.6,1197.3,7.74628798]
[1672622912908,5.0,1197.4,1197.3,5.24628798]
[1672622913278,5.004,1197.4,1197.3,5.24628798]
[1672622917211,5.004,1197.4,1197.3,15.9527918]
[1672622917433,5.004,1197.4,1197.3,7.6006718]
[1672622917612,5.004,1197.4,1197.3,10.1006718]
[1672622917823,5.004,1197.4,1197.3,18.4527918]
[1672622920031,5.004,1197.4,1197.3,10.1006718]
[1672622920711,5.004,1197.4,1197.3,9.84828798]
[1672622924072,5.004,1197.4,1197.3,9.84549746]
[1672622924707,0.004,1197.4,1197.3,9.84549746]
[1672622924919,7.7935,1197.6,1197.3,9.84549746]
[1672622925836,5.0,1197.4,1197.3,9.84549746]
[1672622926045,5.004,1197.4,1197.3,9.84549746]
[1672622929340,6.2310735,1197.4,1197.3,9.84549746]
[1672622929529,6.2310735,1197.4,1197.3,7.34549746]
[1672622931735,1.2310735,1197.4,1197.3,9.84549746]
[1672622931948,1.2270735,1197.4,1197.3,9.84549746]
[1672622932800,6.2270735,1197.4,1197.3,7.34549746]
[1672622932994,6.2310735,1197.4,1197.3,7.34549746]
[1672622934343,6.2310735,1197.4,1197.3,5.24349746]
[1672622940665,6.2310735,1197.4,1197.3,20.2963586]
[1672622941234,6.2310735,1197.4,1197.3,16.14749746]
[1672622944007,6.2310735,1197.4,1197.3,40.79917504]
[1672622944344,6.2310735,1197.4,1197.3,46.4260939]
[1672622944547,6.2310735,1197.4,1197.3,50.22467034]
[1672622945297,6.2310735,1197.4,1197.3,49.1487961]
[1672622946633,1.2310735,1197.4,1197.3,49.1487961]
[1672622946849,1.2270735,1197.4,1197.3,49.1487961]
[1672622949231,1.2270735,1197.4,1197.3,40.7966761]
[1672622949401,1.2270735,1197.4,1197.3,32.4445561]
[1672622949552,1.2270735,1197.4,1197.3,28.64597966]
[1672622949767,1.2270735,1197.4,1197.3,32.40286395]
[1672622949980,1.2270735,1197.4,1197.3,28.64597966]
[1672622950848,1.2270735,1197.4,1197.3,32.40252004]
[1672622951057,1.2270735,1197.4,1197.3,40.77945431]
[1672622951244,1.2270735,1197.4,1197.3,50.24563048]
[1672622953500,1.2270735,1197.4,1197.3,41.89351048]
[1672622953650,1.2270735,1197.4,1197.3,33.54139048]
[1672622954525,1.2270735,1197.4,1197.3,29.7848501]
[1672622954746,1.2270735,1197.4,1197.3,21.2027301]
[1672622955448,1.2270735,1197.4,1197.3,41.70554654]
[1672622956180,1.22376943,1197.4,1197.3,41.70554654]
[1672622956541,1.22376943,1197.4,1197.3,37.9069701]
[1672622957696,1.22376943,1197.4,1197.3,38.15935392]
[1672622960603,1.22376943,1197.4,1197.3,38.05935392]
[1672622962373,1.22376943,1197.4,1197.3,41.85793036]
[1672622962948,1.22376943,1197.4,1197.3,29.70723392]
[1672622963854,1.22376943,1197.4,1197.3,21.35511392]
[1672622967934,1.22376943,1197.4,1197.3,17.20625278]
[1672622970316,1.22376943,1197.4,1197.3,34.98636702]
[1672622970679,1.22376943,1197.4,1197.3,43.33848702]
[1672622971057,1.22376943,1197.4,1197.3,39.13522816]
[1672622971938,1.22376943,1197.4,1197.3,30.78310816]
[1672622973034,1.22376943,1197.4,1197.3,28.67710816]
[1672622974956,1.22376943,1197.4,1197.3,28.04922732]
[1672622976780,1.22376943,1197.4,1197.3,26.97335308]
[1672622979042,1.22376943,1197.4,1197.3,18.62123308]
[1672622981929,1.22376943,1197.4,1197.3,43.67759308]
[1672622984427,1.22376943,1197.4,1197.3,45.78359308]
[1672622984639,1.22376943,1197.4,1197.3,37.43147308]
[1672622985473,1.22376943,1197.4,1197.3,29.07681413]
[1672622986301,1.22376943,1197.4,1197.3,20.72469413]
[1672622994441,1.22376943,1197.4,1197.3,18.61869413]
[1672623000370,1.22376943,1197.4,1197.3,14.46983299]
[1672623000584,1.22376943,1197.4,1197.3,13.02271531]
[1672623001339,1.22376943,1197.4,1197.3,6.72471531]
[1672623001983,1.22376943,1197.4,1197.3,4.22471531]
[1672623002199,1.22376943,1197.4,1197.3,3.24984487]
[1672623002617,13.1117002,1197.6,1197.3,0.25238382]
[1672623002990,15.91059332,1197.6,1197.3,0.25238382]
[1672623003546,5.0,1197.4,1197.3,0.25238382]
[1672623003813,5.004,1197.4,1197.3,0.25238382]
[1672623003964,5.004,1197.4,1197.3,3.25238382]
[1672623004495,7.11,1197.4,1197.3,3.25238382]
[1672623009770,7.11,1197.4,1197.3,3.24928622]
[1672623016449,7.82753769,1197.4,1197.3,0.24928622]
[1672623017964,5.72153769,1197.4,1197.3,0.24928622]
[1672623024279,7.82753769,1197.4,1197.3,0.24928622]
[1672623025899,2.82753769,1197.4,1197.3,0.24928622]
[1672623026123,2.106,1197.4,1197.3,0.24928622]
[1672623026705,7.106,1197.4,1197.3,0.24928622]
[1672623026916,7.11,1197.4,1197.3,0.24928622]
[1672623027867,7.06,1197.4,1197.3,0.24928622]
[1672623028071,7.06,1197.4,1197.3,3.24928622]
[1672623028282,5.004,1197.4,1197.3,3.24928622]
[1672623029262,5.004,1197.4,1197.3,3.0]
[1672623031551,9.69593769,1197.4,1197.3,3.0]
[1672623031771,9.69593769,1197.4,1197.2,0.25238382]
[1672623032023,4.602,1197.3,1197.2,0.25238382]
[1672623032168,9.602,1197.3,1197.2,0.25238382]
[1672623032372,9.60937688,1197.3,1197.1,3.0]
[1672623033041,7.10937688,1197.3,1197.1,3.25238382]
[1672623033384,5.0,1197.2,1197.1,3.25238382]
[1672623033529,5.004,1197.2,1197.1,3.25238382]
[1672623038689,5.0008977,1197.2,1197.1,3.25238382]
[1672623039419,5.96772516,1197.2,1197.1,3.25238382]
[1672623039634,10.15472516,1197.2,1197.0,0.066]
[1672623039962,2.098,1197.1,1196.9,3.40491628]
[1672623040176,5.0,1197.0,1196.9,3.33891628]
[1672623040491,5.004,1197.0,1196.9,0.83891628]
[1672623040704,5.004,1197.0,1196.9,3.33891628]
[1672623041300,5.004,1197.0,1196.9,3.83891628]
[1672623043689,5.004,1197.0,1196.9,6.33891628]
[1672623043821,5.004,1197.0,1196.9,6.40491628]
[1672623045489,5.004,1197.0,1196.9,7.28897245]
[1672623048800,5.004,1197.0,1196.9,4.78897245]
[1672623049028,5.004,1197.0,1196.9,4.72297245]
[1672623058028,0.004,1197.0,1196.9,4.72297245]
[1672623058242,0.00337688,1197.1,1196.9,7.22297245]
[1672623058455,0.00337688,1197.1,1197.0,5.5]
[1672623058663,0.00337688,1197.1,1197.0,5.566]
[1672623058925,0.76237688,1197.1,1197.0,3.31838382]
[1672623059097,0.76237688,1197.1,1197.0,3.25238382]
[1672623059772,5.76237688,1197.1,1197.0,3.25238382]
[1672623059970,5.76637688,1197.1,1197.0,3.25238382]
[1672623060707,6.71895731,1197.1,1197.0,3.24965211]
[1672623060918,6.71895731,1197.1,1197.0,0.25238382]
[1672623062227,11.30595731,1197.1,1197.0,0.25238382]
[1672623062439,8.80595731,1197.1,1197.0,0.25238382]
[1672623063280,7.85337688,1197.1,1197.0,0.25238382]
[1672623064340,5.76637688,1197.1,1197.0,0.25238382]
[1672623070744,0.76637688,1197.1,1197.0,0.25238382]
[1672623070974,0.76237688,1197.1,1197.0,0.25238382]
[1672623071591,5.76237688,1197.1,1197.0,0.25238382]
[1672623071845,6.71895731,1197.1,1197.0,0.25238382]
[1672623072899,6.71895731,1197.1,1196.9,3.16359621]
[1672623074555,6.71895731,1197.1,1196.9,3.41598003]
[1672623079256,1.71895731,1197.1,1196.9,3.41598003]
[1672623079465,1.71495731,1197.1,1196.9,3.41598003]
[1672623079729,0.76237688,1197.1,1196.9,3.41598003]
[1672623080098,5.0,1197.0,1196.9,3.41598003]
[1672623080369,5.004,1197.0,1196.9,3.41598003]
[1672623084032,5.004,1197.0,1196.9,3.41240597]
[1672623088979,7.107,1197.0,1196.9,3.16002215]
[1672623089298,7.61393769,1197.0,1196.9,3.0]
[1672623090082,7.61393769,1197.0,1196.8,0.066]
[1672623090328,7.61393769,1197.0,1196.7,4.5579939]
[1672623090568,7.61393769,1197.0,1196.7,4.0579939]
[1672623091605,10.11393769,1197.0,1196.7,0.67393773]
[1672623091799,10.11393769,1197.0,1196.7,3.25238382]
[1672623091990,7.61393769,1197.0,1196.7,3.25238382]
[1672623092182,7.61393769,1197.0,1196.7,5.75238382]
[1672623092393,7.61731457,1197.0,1196.7,5.81838382]
[1672623094285,5.51431457,1197.0,1196.7,5.81838382]
[1672623096391,5.51431457,1197.0,1196.7,6.23432197]
[1672623096822,5.51431457,1197.0,1196.7,3.73432197]
[1672623097072,5.51431457,1197.0,1196.7,3.66832197]
[1672623097225,5.51431457,1197.0,1196.7,3.25238382]
[1672623097442,5.0,1196.8,1196.7,3.25238382]
[1672623097655,5.004,1196.8,1196.7,3.25238382]
[1672623099556,5.004,1196.8,1196.7,4.13643999]
[1672623100060,5.004,1196.8,1196.7,6.63643999]
[1672623100266,5.004,1196.8,1196.7,6.70243999]
[1672623101321,5.004,1196.8,1196.7,4.20243999]
[1672623101594,5.004,1196.8,1196.7,4.13643999]
[1672623102392,5.004,1196.8,1196.7,4.5567723]
[1672623103525,5.004,1196.8,1196.7,7.0567723]
[1672623103737,5.004,1196.8,1196.7,7.1227723]
[1672623106486,5.004,1196.8,1196.7,7.12067447]
[1672623107100,5.004,1196.8,1196.7,4.62067447]
[1672623107351,5.5106,1196.8,1196.7,4.13434216]
[1672623110312,5.5106,1196.8,1196.7,4.55783131]
[1672623113843,5.5106,1196.8,1196.7,3.67377514]
[1672623117047,5.004,1196.8,1196.7,3.67377514]
[1672623128732,0.004,1196.8,1196.7,3.67141274]
[1672623128945,0.6277,1197.0,1196.7,6.17141274]
[1672623129280,15.26055434,1197.1,1196.7,10.30034315]
[1672623129281,5.0,1196.8,1196.7,10.30034315]
[1672623129429,5.004,1196.8,1196.7,10.30034315]
[1672623131159,5.004,1196.8,1196.7,9.22446891]
[1672623136768,5.004,1196.8,1196.7,13.37333005]
[1672623137143,5.004,1196.8,1196.7,21.72964005]
[1672623137342,5.004,1196.8,1196.7,26.65999206]
[1672623137976,5.004,1196.8,1196.7,18.30368206]
[1672623138450,5.004,1196.8,1196.7,27.33168206]
[1672623141350,5.004,1196.8,1196.7,18.53368206]
[1672623144551,5.004,1196.8,1196.7,13.60333005]
[1672623144922,0.004,1196.8,1196.7,13.60333005]
[1672623145142,8.5956,1197.1,1196.7,13.60333005]
[1672623145474,8.5956,1197.1,1196.9,2.5]
[1672623145475,8.58697688,1197.1,1196.9,2.5]
[1672623145652,9.54855731,1197.1,1196.9,5.5]
[1672623145852,5.0,1197.0,1196.9,3.31838382]
[1672623146105,5.004,1197.0,1196.9,3.0]
[1672623146261,5.004,1197.0,1196.9,3.25238382]
[1672623150310,5.004,1197.0,1196.9,3.24941437]
[1672623151867,1.46505573,1197.0,1196.9,3.24941437]
[1672623152084,1.46105573,1197.0,1196.9,3.24941437]
[1672623152929,6.46105573,1197.0,1196.9,3.24941437]
[1672623153092,6.46505573,1197.0,1196.9,3.24941437]
[1672623156091,5.004,1197.0,1196.9,3.24941437]
[1672623156518,5.004,1197.0,1196.9,5.35241437]
[1672623156670,5.004,1197.0,1196.9,6.30247054]
[1672623160787,5.006,1197.0,1196.9,6.30047054]
[1672623161043,5.004,1197.0,1196.9,6.30247054]
[1672623161188,5.004,1197.0,1196.9,7.40800759]
[1672623161400,5.004,1197.0,1196.9,7.57219945]
[1672623163532,0.004,1197.0,1196.9,7.57219945]
[1672623163762,7.956,1197.1,1196.9,7.57219945]
[1672623163927,7.956,1197.1,1197.0,4.585]
[1672623164136,0.004,1197.1,1197.0,7.585]
[1672623164347,0.6275,1197.3,1197.0,7.90338382]
[1672623164717,2.6145264,1197.3,1197.1,3.0]
[1672623165286,0.6275,1197.3,1197.1,5.35538382]
[1672623165503,0.6275,1197.3,1197.1,5.42138382]
[1672623167075,8.39067688,1197.4,1197.2,2.086]
[1672623167320,8.3253,1197.4,1197.2,2.086]
[1672623167654,8.3253,1197.4,1197.2,4.83838382]
[1672623167872,8.3253,1197.4,1197.3,3.0]
[1672623168450,0.004,1197.4,1197.3,3.0]
[1672623168638,35.6314,1197.5,1197.3,3.0]
[1672623168931,39.7164364,1197.5,1197.3,3.0]
[1672623171775,5.0,1197.4,1197.3,3.0]
[1672623171933,5.004,1197.4,1197.3,3.0]
[1672623172986,5.004,1197.4,1197.3,5.34838382]
[1672623173195,5.004,1197.4,1197.3,5.41438382]
[1672623173412,4.904,1197.4,1197.3,6.83221531]
[1672623173622,4.9,1197.4,1197.3,6.83221531]
[1672623179875,4.89793576,1197.4,1197.3,6.83221531]
[1672623181837,0.066,1197.5,1197.3,6.83221531]
[1672623182046,5.0,1197.4,1197.3,7.23621531]
[1672623182258,5.004,1197.4,1197.3,9.32021531]
[1672623184961,5.004,1197.4,1197.3,6.82021531]
[1672623185399,5.006,1197.4,1197.3,6.81821531]
[1672623185626,5.006,1197.4,1197.3,6.82021531]
[1672623185627,5.004,1197.4,1197.3,6.82021531]
[1672623187302,5.004,1197.4,1197.3,3.73617693]
[1672623187477,5.004,1197.4,1197.3,3.67017693]
[1672623193651,0.004,1197.4,1197.3,3.67017693]
[1672623193799,0.00337688,1197.5,1197.3,6.17017693]
[1672623194011,0.00337688,1197.5,1197.3,6.23617693]
[1672623194224,0.00337688,1197.5,1197.4,2.5]
[1672623194484,5.00337688,1197.5,1197.3,6.23617693]
[1672623194803,5.00737688,1197.5,1197.3,6.23617693]
[1672623195587,4.95737688,1197.5,1197.3,6.23617693]
[1672623195980,4.95337688,1197.5,1197.3,6.23617693]
[1672623196131,4.95337688,1197.5,1197.3,3.73617693]
[1672623196333,4.95337688,1197.5,1197.3,3.67017693]
[1672623197841,4.95337688,1197.5,1197.3,6.17017693]
[1672623198061,4.95337688,1197.5,1197.3,6.23617693]
[1672623199019,4.95337688,1197.5,1197.3,7.83134171]
[1672623201618,4.95337688,1197.5,1197.3,11.98020285]
[1672623202023,4.95337688,1197.5,1197.3,7.83134171]
[1672623202651,4.95337688,1197.5,1197.3,5.33134171]
[1672623202904,4.95337688,1197.5,1197.3,3.73617693]
[1672623203217,4.95337688,1197.5,1197.3,3.67017693]
[1672623204743,4.95337688,1197.5,1197.3,6.17017693]
[1672623205078,4.95337688,1197.5,1197.3,6.23617693]
[1672623205289,4.95337688,1197.5,1197.3,7.83134171]
[1672623205848,8.0597,1197.6,1197.3,7.83134171]
[1672623206004,7.9977,1197.6,1197.3,7.83134171]
[1672623206796,5.0,1197.4,1197.3,7.83134171]
[1672623206967,5.004,1197.4,1197.3,16.18345171]
[1672623207174,5.004,1197.4,1197.3,7.83134171]
[1672623207943,5.004,1197.4,1197.3,16.18346171]
[1672623208107,5.004,1197.4,1197.3,7.83134171]
[1672623208861,5.004,1197.4,1197.3,16.18346171]
[1672623209083,5.004,1197.4,1197.3,7.83134171]
[1672623210526,5.004,1197.4,1197.3,5.33134171]
[1672623213051,5.004,1197.4,1197.3,3.73617693]
[1672623213261,5.004,1197.4,1197.3,3.67017693]
[1672623217814,0.004,1197.4,1197.3,6.17017693]
[1672623218025,13.15466401,1197.6,1197.3,3.73617693]
[1672623218284,13.15466401,1197.6,1197.3,3.67017693]
[1672623218818,5.0,1197.4,1197.3,3.67017693]
[1672623219021,5.004,1197.4,1197.3,3.67017693]
[1672623220125,5.004,1197.4,1197.3,3.66703547]
[1672623224900,0.004,1197.4,1197.3,6.16703547]
[1672623225132,13.15466401,1197.6,1197.3,3.73303547]
[1672623225332,13.15466401,1197.6,1197.3,3.66703547]
[1672623225846,5.0,1197.4,1197.3,3.66703547]
[1672623226015,5.004,1197.4,1197.3,3.66703547]
[1672623231940,0.004,1197.4,1197.3,6.16703547]
[1672623232129,7.9977,1197.6,1197.3,6.23303547]
[1672623232820,5.0,1197.4,1197.3,3.73303547]
[1672623232989,5.004,1197.4,1197.3,3.66703547]
[1672623243270,5.004,1197.4,1197.3,3.66322705]
[1672623243714,0.004,1197.4,1197.3,3.66322705]
[1672623243934,15.24166401,1197.6,1197.3,3.66322705]
[1672623244136,17.45359609,1197.6,1197.3,3.66322705]
[1672623244556,5.0,1197.4,1197.3,3.66322705]
[1672623244801,5.004,1197.4,1197.3,3.66322705]
[1672623245855,5.004,1197.4,1197.3,6.16322705]
[1672623246023,5.004,1197.4,1197.3,6.22922705]
[1672623246444,5.004,1197.4,1197.3,3.72922705]
[1672623246777,5.004,1197.4,1197.3,3.66322705]
[1672623250882,5.004,1197.4,1197.3,5.84190049]
[1672623251052,5.004,1197.4,1197.3,8.40790049]
[1672623251472,5.004,1197.4,1197.3,5.90790049]
[1672623252312,5.004,1197.4,1197.3,3.72922705]
[1672623252518,5.004,1197.4,1197.3,3.66322705]
[1672623253685,0.004,1197.4,1197.3,3.66322705]
[1672623254030,10.4487,1197.6,1197.3,3.66322705]
[1672623254031,7.9977,1197.6,1197.3,6.16322705]
[1672623254243,7.9977,1197.6,1197.3,6.22922705]
[1672623254456,9.5923964,1197.6,1197.3,5.97684323]
[1672623254784,9.5923964,1197.6,1197.4,2.75238382]
[1672623254994,9.5923964,1197.6,1197.5,3.0]
[1672623255185,1.5986964,1197.6,1197.5,3.0]
[1672623255421,7.95326401,1197.7,1197.5,3.0]
[1672623255730,7.89126401,1197.7,1197.5,3.0]
[1672623263589,7.89126401,1197.7,1197.4,3.31838382]
[1672623263793,7.89126401,1197.7,1197.4,3.25238382]
[1672623264165,7.89126401,1197.7,1197.4,3.24862257]
[1672623264387,10.29316609,1197.7,1197.4,3.24862257]
[1672623268172,7.65696401,1197.6,1197.4,3.24862257]
[1672623268366,2.504,1197.6,1197.4,3.24862257]
[1672623268574,10.35516609,1197.7,1197.4,3.24862257]
[1672623268914,10.29316609,1197.7,1197.4,3.24862257]
[1672623269065,5.16096401,1197.7,1197.5,0.25238382]
[1672623269276,0.004,1197.7,1197.4,11.97466157]
[1672623269490,10.5087,1197.8,1197.5,0.25238382]
[1672623269731,12.15478343,1197.8,1197.5,2.75238382]
[1672623270114,17.31174744,1197.8,1197.6,3.0]
[1672623270379,12.15478343,1197.8,1197.6,3.25238382]
[1672623273294,12.15478343,1197.8,1197.6,3.66408896]
[1672623274315,10.05178343,1197.8,1197.6,3.66408896]
[1672623282691,8.4057,1197.8,1197.6,3.66408896]
[1672623282922,0.6313,1197.8,1197.6,3.66408896]
[1672623283146,6.58333431,1197.9,1197.6,3.66408896]
[1672623283364,6.52133431,1197.9,1197.6,3.66408896]
[1672623286321,1.3643703,1197.9,1197.6,3.66408896]
[1672623286632,6.51733431,1197.9,1197.6,4.28709786]
[1672623286831,6.52133431,1197.9,1197.6,4.28709786]
[1672623287211,1.3643703,1197.9,1197.6,6.37709786]
[1672623287428,1.3603703,1197.9,1197.6,6.44309786]
[1672623287863,0.7331703,1197.9,1197.7,0.25238382]
[1672623288053,0.7331703,1197.9,1197.7,2.75238382]
[1672623288291,0.7331703,1197.9,1197.8,3.0]
[1672623288732,0.7331703,1197.9,1197.8,2.99724125]
[1672623289945,0.7331703,1197.9,1197.7,0.31838382]
[1672623290159,0.7331703,1197.9,1197.7,0.25238382]
[1672623290361,0.7331703,1197.9,1197.7,3.25238382]
[1672623290740,0.7331703,1197.9,1197.7,5.75238382]
[1672623290947,0.7331703,1197.9,1197.7,3.31838382]
[1672623291113,0.7331703,1197.9,1197.7,3.25238382]
[1672623292209,0.7331703,1197.9,1197.7,7.15876361]
[1672623292420,0.7331703,1197.9,1197.7,7.22476361]
[1672623292633,0.7331703,1197.9,1197.7,9.30876361]
[1672623298160,0.7331703,1197.9,1197.7,7.22476361]
[1672623298426,0.7331703,1197.9,1197.8,1.08338382]
[1672623298559,0.7331703,1197.9,1197.8,2.36246018]
[1672623298770,0.7331703,1197.9,1197.8,7.86246018]
[1672623299036,0.7331703,1197.9,1197.8,7.92846018]
[1672623307826,0.7331703,1197.9,1197.8,5.42846018]
[1672623308944,0.7331703,1197.9,1197.8,5.42553425]
[1672623313745,0.7331703,1197.9,1197.8,7.92553425]
[1672623314781,5.7331703,1197.9,1197.8,7.92553425]
[1672623314992,5.7371703,1197.9,1197.8,7.92553425]
[1672623323025,5.7371703,1197.9,1197.8,4.41025789]
[1672623323236,5.7371703,1197.9,1197.8,4.34425789]
[1672623326915,5.7371703,1197.9,1197.8,3.2638]
[1672623327086,5.7371703,1197.9,1197.8,0.2638]
[1672623331022,5.7371703,1197.9,1197.8,1.0948]
[1672623331185,5.7371703,1197.9,1197.8,4.0948]
[1672623332695,5.7371703,1197.9,1197.8,4.09207604]
[1672623333799,0.7371703,1197.9,1197.8,4.09207604]
[1672623334058,0.7331703,1197.9,1197.8,4.09207604]
[1672623334235,5.7331703,1197.9,1197.8,4.09207604]
[1672623334590,5.7371703,1197.9,1197.8,4.09207604]
[1672623340371,0.7371703,1197.9,1197.8,4.09207604]
[1672623340588,0.7331703,1197.9,1197.8,4.09207604]
[1672623341424,5.7331703,1197.9,1197.8,4.09207604]
[1672623341738,5.7371703,1197.9,1197.8,4.09207604]
[1672623346483,5.7371703,1197.9,1197.8,3.26107604]
[1672623347318,0.7371703,1197.9,1197.8,3.26107604]
[1672623347509,0.7331703,1197.9,1197.8,3.26107604]
[1672623348278,5.7331703,1197.9,1197.8,3.26107604]
[1672623348436,5.7371703,1197.9,1197.8,3.26107604]
[1672623350727,5.5371703,1197.9,1197.8,3.26107604]
[1672623352895,5.5371703,1197.9,1197.8,4.05464015]
[1672623354254,0.5371703,1197.9,1197.8,4.05464015]
[1672623354442,0.5331703,1197.9,1197.8,4.05464015]
[1672623355416,5.5331703,1197.9,1197.8,4.05464015]
[1672623355572,5.5371703,1197.9,1197.8,4.05464015]